bitfinex-derivatives/quotes_SOLF0:USTF0_20250907
["timestamp","ask_amount","ask_price","bid_price","bid_amount"]
[1757271662669,5.55257218,202.44,202.42,1.97249613]
[1757271662874,7.71,202.45,202.42,8.75249613]
[1757271663174,5.55257218,202.46,202.42,1.97249613]
[1757271663971,7.71,202.45,202.42,1.97249613]
[1757271664375,5.55257218,202.46,202.4,0.03645426]
[1757271664576,7.71,202.45,202.4,0.03645426]
[1757271664779,5.55257218,202.45,202.4,0.03645426]
[1757271665075,5.55257218,202.45,202.4,6.80645426]
[1757271665467,5.55257218,202.46,202.4,6.80645426]
[1757271665866,8.17,202.45,202.4,6.80645426]
[1757271666974,5.55257218,202.46,202.4,6.80645426]
[1757271667167,8.17,202.46,202.4,6.80645426]
[1757271671775,8.17,202.46,202.4,0.03645426]
[1757271672573,13.72257218,202.46,202.4,0.03645426]
[1757271674277,5.55257218,202.43,202.4,0.03645426]
[1757271674585,8.17,202.43,202.4,0.03645426]
[1757271674986,5.55257218,202.45,202.4,0.03645426]
[1757271675187,8.17,202.44,202.4,0.03645426]
[1757271676384,13.72257218,202.44,202.4,0.03645426]
[1757271678384,8.17,202.43,202.4,0.03645426]
[1757271678591,8.17,202.43,202.4,6.80645426]
[1757271680090,8.17,202.43,202.41,6.77]
[1757271680391,13.72257218,202.45,202.41,6.77]
[1757271680587,8.17,202.44,202.41,6.77]
[1757271680988,5.55257218,202.45,202.4,0.03645426]
[1757271681188,8.17,202.44,202.4,0.03645426]
[1757271681388,8.17,202.44,202.4,6.80645426]
[1757271681595,8.17,202.44,202.41,6.77]
[1757271682590,8.17,202.44,202.4,3.11331682]
[1757271683494,5.55257218,202.46,202.4,3.11331682]
[1757271683695,8.17,202.45,202.4,3.11331682]
[1757271684292,5.55257218,202.45,202.4,3.11331682]
[1757271684497,5.55257218,202.45,202.4,9.88331682]
[1757271684696,8.17,202.44,202.4,9.88331682]
[1757271685197,5.55257218,202.45,202.4,9.88331682]
[1757271685794,8.17,202.44,202.41,6.77]
[1757271686296,13.72257218,202.44,202.41,6.77]
[1757271687200,5.55257218,202.43,202.41,6.77]
[1757271687604,13.72257218,202.42,202.4,0.03645426]
[1757271687804,8.17,202.41,202.4,0.03645426]
[1757271688003,13.70267386,202.41,202.4,0.03645426]
[1757271688204,8.17,202.41,202.4,0.03645426]
[1757271689110,13.70464341,202.41,202.4,0.03645426]
[1757271690301,8.17,202.41,202.4,0.03645426]
[1757271694006,16.50032498,202.42,202.4,0.03645426]
[1757271694308,8.33032498,202.42,202.4,0.03645426]
[1757271694508,8.17,202.41,202.4,0.03645426]
[1757271695211,16.50032498,202.41,202.4,0.03645426]
[1757271696503,15.98032498,202.41,202.4,0.03645426]
[1757271696708,7.65,202.41,202.4,0.03645426]
[1757271696910,7.65,202.41,202.4,0.00426]
[1757271697610,5.55030039,202.42,202.4,0.00426]
[1757271698107,13.20030039,202.42,202.4,0.00426]
[1757271699317,5.55030039,202.42,202.4,0.00426]
[1757271699613,7.65,202.41,202.4,0.00426]
[1757271701710,13.20030039,202.41,202.4,0.00426]
[1757271702211,7.65,202.41,202.4,0.00426]
[1757271703313,13.20030039,202.41,202.4,0.00426]
[1757271703819,7.65,202.41,202.4,0.00426]
[1757271707120,5.55030039,202.41,202.4,6.77426]
[1757271708820,13.20030039,202.41,202.4,0.00426]
[1757271710121,5.55030039,202.41,202.4,0.00426]
[1757271710920,13.20030039,202.41,202.4,0.00426]
[1757271711621,5.55030039,202.41,202.4,0.00426]
[1757271713823,13.20030039,202.41,202.4,0.00426]
[1757271714022,5.55030039,202.41,202.4,0.00426]
[1757271715324,13.20030039,202.41,202.4,0.00426]
[1757271715825,5.55030039,202.41,202.4,0.00426]
[1757271716026,8.32545059,202.42,202.4,0.00426]
[1757271716326,7.65,202.42,202.4,0.00426]
[1757271716820,15.97545059,202.42,202.4,0.00426]
[1757271718026,7.65,202.41,202.4,0.00426]
[1757271718327,15.97914572,202.41,202.4,0.00426]
[1757271720426,7.65,202.41,202.4,0.00426]
[1757271721420,15.97901636,202.41,202.4,0.00426]
[1757271724529,7.65,202.41,202.4,0.00426]
[1757271724930,7.96,202.41,202.4,0.00426]
[1757271725128,8.32901636,202.42,202.4,0.00426]
[1757271725629,7.96,202.41,202.4,0.00426]
[1757271726030,8.32901636,202.42,202.4,0.00426]
[1757271726826,7.96,202.41,202.4,0.00426]
[1757271727429,8.32901636,202.42,202.4,0.00426]
[1757271727623,7.96,202.41,202.4,0.00426]
[1757271728330,8.32901636,202.42,202.4,0.00426]
[1757271728533,7.96,202.41,202.4,0.00426]
[1757271728825,8.32901636,202.42,202.4,0.00426]
[1757271729025,7.96,202.41,202.4,0.00426]
[1757271730125,8.32901636,202.42,202.4,0.00426]
[1757271730324,7.96,202.41,202.4,0.00426]
[1757271730525,8.32901636,202.42,202.4,0.00426]
[1757271730931,5.55009484,202.41,202.4,0.00426]
[1757271732734,8.36712211,202.43,202.4,0.00426]
[1757271733138,7.96,202.42,202.4,0.00426]
[1757271733538,8.36712211,202.43,202.4,0.00426]
[1757271733741,7.96,202.42,202.4,0.00426]
[1757271734134,8.36712211,202.43,202.4,0.00426]
[1757271734335,7.96,202.42,202.4,0.00426]
[1757271734730,5.55034871,202.41,202.4,0.00426]
[1757271737142,8.32901636,202.41,202.4,0.00426]
[1757271743750,0.03810575,202.43,202.41,6.76]
[1757271743956,5.54974472,202.42,202.41,6.76]
[1757271744156,5.54974472,202.42,202.41,8.72937842]
[1757271744455,0.03810575,202.43,202.42,6.76]
[1757271745461,5.58613178,202.43,202.42,8.72937842]
[1757271746055,0.03810575,202.43,202.42,8.72937842]
[1757271746855,0.03810575,202.43,202.42,6.76]
[1757271747055,0.03810575,202.43,202.42,8.72937842]
[1757271749952,5.54802603,202.47,202.43,6.76]
[1757271750158,5.54802603,202.49,202.47,6.76]
[1757271750355,5.54802603,202.51,202.49,6.76]
[1757271750556,5.54802603,202.51,202.5,1.96937842]
[1757271751657,5.54802603,202.52,202.5,1.96937842]
[1757271751855,13.50802603,202.52,202.5,1.96937842]
[1757271752060,7.96,202.51,202.5,1.96937842]
[1757271752860,7.96,202.52,202.48,0.03600752]
[1757271753052,5.54802603,202.53,202.5,1.96937842]
[1757271753254,5.54802603,202.53,202.48,0.03600752]
[1757271753458,5.54802603,202.53,202.5,1.96937842]
[1757271753852,7.96,202.52,202.5,1.96937842]
[1757271754158,7.96,202.52,202.5,8.73937842]
[1757271755362,13.71802603,202.54,202.51,6.79]
[1757271755558,13.71802603,202.54,202.49,6.79]
[1757271755559,5.54802603,202.54,202.49,6.79]
[1757271755862,5.54802603,202.54,202.53,1.96937842]
[1757271756062,13.71802603,202.56,202.53,1.96937842]
[1757271756462,8.17,202.56,202.53,1.96937842]
[1757271756965,5.54802603,202.57,202.53,1.96937842]
[1757271757265,8.17,202.56,202.53,8.75937842]
[1757271757764,8.17,202.56,202.55,1.96937842]
[1757271760265,8.17,202.58,202.55,8.75937842]
[1757271760468,8.17,202.59,202.55,1.96937842]
[1757271760968,8.17,202.6,202.57,1.96937842]
[1757271761168,8.17,202.6,202.55,1.96937842]
[1757271761668,8.17,202.6,202.55,2.00435837]
[1757271761866,8.17,202.6,202.55,0.03497995]
[1757271762067,7.51740445,202.59,202.55,0.03497995]
[1757271762371,13.71802603,202.58,202.55,0.03497995]
[1757271762568,8.17,202.58,202.55,0.03497995]
[1757271762868,13.71802603,202.58,202.55,0.03497995]
[1757271763064,1.96937842,202.57,202.55,0.03497995]
[1757271763271,13.71802603,202.56,202.55,0.03497995]
[1757271763470,8.17,202.56,202.55,0.03497995]
[1757271765170,13.71802603,202.56,202.55,0.03497995]
[1757271766363,14.21802603,202.56,202.47,1.96937842]
[1757271766669,8.17,202.52,202.47,1.96937842]
[1757271767470,1.96937842,202.54,202.47,1.96937842]
[1757271767672,8.17,202.51,202.47,8.78937842]
[1757271769673,8.17,202.51,202.48,6.82]
[1757271769877,0.03470044,202.52,202.48,6.82]
[1757271770076,8.17,202.51,202.48,6.82]
[1757271770475,8.17,202.51,202.48,8.78937842]
[1757271770777,8.17,202.51,202.48,1.96937842]
[1757271771378,0.03470044,202.52,202.48,1.96937842]
[1757271771580,8.17,202.51,202.48,1.96937842]
[1757271771775,0.03470044,202.52,202.48,1.96937842]
[1757271772074,0.03470044,202.52,202.45,6.82]
[1757271772075,8.17,202.51,202.46,1.96937842]
[1757271772276,0.03470044,202.52,202.46,1.96937842]
[1757271772777,8.17,202.51,202.46,1.96937842]
[1757271772978,0.03470044,202.52,202.46,1.96937842]
[1757271773282,8.17,202.51,202.46,8.78937842]
[1757271773479,0.03470044,202.52,202.46,1.96937842]
[1757271773681,8.17,202.51,202.46,8.78937842]
[1757271773874,0.03470044,202.52,202.46,1.96937842]
[1757271774084,8.17,202.51,202.46,8.78937842]
[1757271774277,0.03470044,202.52,202.46,1.96937842]
[1757271774477,8.17,202.51,202.46,8.78937842]
[1757271774676,8.17,202.51,202.47,6.82]
[1757271774975,0.03470044,202.52,202.47,6.82]
[1757271775378,8.17,202.51,202.47,6.82]
[1757271775577,0.03470044,202.52,202.47,6.82]
[1757271776477,8.17,202.51,202.47,6.82]
[1757271776676,0.03470044,202.52,202.47,6.82]
[1757271776876,8.17,202.51,202.47,1.96937842]
[1757271777071,8.17,202.51,202.48,6.82]
[1757271778383,8.17,202.51,202.47,1.96937842]
[1757271778583,8.17,202.51,202.48,6.82]
[1757271779085,8.17,202.51,202.49,8.78937842]
[1757271780386,0.03470044,202.52,202.5,6.82]
[1757271780587,8.20470044,202.52,202.5,6.82]
[1757271780886,0.03470044,202.52,202.51,8.78937842]
[1757271781882,8.17,202.51,202.41,6.82]
[1757271782086,8.20470044,202.52,202.49,8.78937842]
[1757271782282,0.03470044,202.52,202.5,6.82]
[1757271782481,13.71802603,202.55,202.5,6.82]
[1757271782782,0.03169977,202.53,202.5,6.82]
[1757271782981,0.03169977,202.53,202.52,6.82]
[1757271785585,5.54802603,202.62,202.52,7.32]
[1757271785784,8.14,202.62,202.6,1.96937842]
[1757271785982,5.54802603,202.63,202.6,1.96937842]
[1757271785983,5.54802603,202.63,202.61,6.78]
[1757271786587,1.96937842,202.67,202.61,6.78]
[1757271786588,5.54802603,202.64,202.61,6.78]
[1757271786889,5.54802603,202.64,202.6,2.00252443]
[1757271787092,5.54802603,202.63,202.6,2.00252443]
[1757271787386,13.68802603,202.63,202.6,2.00252443]
[1757271787589,8.14,202.62,202.6,2.00252443]
[1757271787978,8.14,202.61,202.6,2.00252443]
[1757271788382,8.14,202.61,202.6,0.03314601]
[1757271790593,16.46901636,202.61,202.6,0.03314601]
[1757271790889,16.46901636,202.61,202.52,3.07125794]
[1757271790890,16.96901636,202.61,202.52,3.07125794]
[1757271791089,13.66569853,202.58,202.52,3.07125794]
[1757271793483,5.52569853,202.57,202.52,3.07125794]
[1757271793690,5.52569853,202.57,202.52,9.88125794]
[1757271793897,5.52569853,202.57,202.52,3.07125794]
[1757271794186,8.14,202.56,202.52,3.07125794]
[1757271794585,5.52569853,202.57,202.52,3.07125794]
[1757271794891,8.14,202.56,202.53,6.81]
[1757271795489,5.52569853,202.58,202.53,6.81]
[1757271795490,8.14,202.57,202.53,6.81]
[1757271795694,5.52569853,202.58,202.53,6.81]
[1757271796096,8.14,202.57,202.53,6.81]
[1757271796395,5.52569853,202.58,202.5,6.81]
[1757271796596,5.52569853,202.58,202.52,3.07125794]
[1757271797092,13.66569853,202.59,202.52,3.07125794]
[1757271797296,13.66569853,202.59,202.53,6.81]
[1757271802802,5.52569853,202.61,202.55,9.88125794]
[1757271803002,13.66569853,202.62,202.55,9.88125794]
[1757271803206,5.52569853,202.61,202.55,9.88125794]
[1757271804204,5.52569853,202.61,202.55,3.07125794]
[1757271804508,5.52569853,202.61,202.53,6.81]
[1757271804708,5.52569853,202.62,202.53,6.81]
[1757271805804,13.66569853,202.61,202.53,6.81]
[1757271806605,5.52569853,202.61,202.53,6.81]
[1757271806811,5.52569853,202.62,202.53,6.81]
[1757271807108,13.66569853,202.62,202.53,6.81]
[1757271807305,8.14,202.62,202.53,6.81]
[1757271807505,13.66569853,202.62,202.53,6.81]
[1757271811111,5.52569853,202.61,202.53,6.81]
[1757271811307,8.14,202.6,202.53,6.81]
[1757271812619,8.14,202.6,202.55,3.07125794]
[1757271813415,5.52569853,202.62,202.58,3.07125794]
[1757271813615,5.52569853,202.64,202.58,9.88125794]
[1757271814021,8.14,202.63,202.58,9.88125794]
[1757271814220,5.52569853,202.64,202.58,3.07125794]
[1757271814424,8.14,202.63,202.58,3.07125794]
[1757271814622,5.52569853,202.64,202.58,3.07125794]
[1757271814814,8.14,202.63,202.58,3.07125794]
[1757271815018,5.52569853,202.64,202.58,3.07125794]
[1757271815219,12.96569853,202.64,202.58,9.88125794]
[1757271817324,7.44,202.64,202.58,9.88125794]
[1757271818323,12.96569853,202.64,202.58,9.88125794]
[1757271819026,0.03294454,202.63,202.58,3.07125794]
[1757271819226,7.47294454,202.63,202.59,6.81]
[1757271819416,0.03294454,202.63,202.59,6.81]
[1757271820021,0.03294454,202.63,202.58,3.07125794]
[1757271820225,0.03294454,202.63,202.59,6.81]
[1757271820622,7.47294454,202.63,202.59,6.81]
[1757271820924,7.47294454,202.63,202.58,3.07125794]
[1757271821129,7.47294454,202.63,202.59,6.81]
[1757271821429,0.03294454,202.63,202.59,6.81]
[1757271821830,0.03294454,202.63,202.58,3.07125794]
[1757271822029,0.03294454,202.63,202.59,6.81]
[1757271823428,0.03294454,202.63,202.62,6.81]
[1757271824030,0.03294454,202.63,202.6,6.81]
[1757271824031,7.47294454,202.63,202.6,6.81]
[1757271824229,0.03294454,202.63,202.6,6.81]
[1757271824423,7.47294454,202.63,202.6,6.81]
[1757271827330,12.99864307,202.63,202.6,6.81]
[1757271828228,7.44,202.62,202.6,6.81]
[1757271828432,12.96569853,202.62,202.58,3.07125794]
[1757271828633,7.44,202.61,202.58,9.88125794]
[1757271828833,5.52569853,202.62,202.58,6.81]
[1757271829129,5.52569853,202.61,202.58,6.81]
[1757271829329,12.96569853,202.61,202.58,6.81]
[1757271829524,12.96569853,202.61,202.56,3.07125794]
[1757271829727,7.44,202.61,202.56,3.07125794]
[1757271830232,7.44,202.61,202.57,6.81]
[1757271830536,7.44,202.61,202.54,9.88125794]
[1757271830926,0.03294454,202.63,202.54,9.88125794]
[1757271831927,5.53294035,202.59,202.54,9.88125794]
[1757271832131,7.44,202.58,202.54,9.88125794]
[1757271832530,7.44,202.58,202.55,6.81]
[1757271832923,7.44,202.57,202.55,6.81]
[1757271835630,7.44,202.57,202.53,3.07125794]
[1757271835830,7.44,202.57,202.52,3.07125794]
[1757271836432,5.56604742,202.58,202.52,3.07125794]
[1757271836733,7.44,202.57,202.52,3.07125794]
[1757271837331,0.03310707,202.58,202.52,3.07125794]
[1757271837634,7.44,202.57,202.52,3.07125794]
[1757271837836,7.47310707,202.58,202.52,9.88125794]
[1757271838934,7.44,202.57,202.52,6.81]
[1757271839437,0.03310707,202.58,202.52,6.81]
[1757271839636,7.44,202.57,202.52,6.81]
[1757271839841,7.44,202.57,202.51,3.07125794]
[1757271840435,7.44,202.57,202.51,9.88125794]
[1757271843239,12.97294035,202.57,202.51,3.07125794]
[1757271843438,7.44,202.55,202.51,3.07125794]
[1757271844132,7.44,202.55,202.48,6.81]
[1757271844133,12.97294035,202.55,202.48,6.81]
[1757271845239,7.44,202.55,202.48,6.81]
[1757271845441,0.03189201,202.54,202.48,6.81]
[1757271845740,7.69,202.53,202.48,6.81]
[1757271846141,7.69,202.53,202.47,9.88125794]
[1757271850144,0.03189201,202.54,202.5,3.07125794]
[1757271850343,0.03189201,202.54,202.53,1.96675363]
[1757271850542,0.03189201,202.54,202.53,8.77675363]
[1757271851446,0.03189201,202.54,202.53,1.96675363]
[1757271853542,0.03189201,202.54,202.53,8.77675363]
[1757271855646,7.72189201,202.54,202.53,1.96675363]
[1757271856445,7.72189201,202.54,202.52,1.96675363]
[1757271856948,0.03189201,202.54,202.53,6.81]
[1757271857847,0.03189201,202.54,202.52,8.77675363]
[1757271860552,0.03189201,202.54,202.53,6.81]
[1757271865356,0.03189201,202.54,202.52,8.77675363]
[1757271866455,0.03189201,202.54,202.52,1.96675363]
[1757271866657,0.03189201,202.54,202.53,6.81]
[1757271873255,5.56483236,202.54,202.53,6.81]
[1757271874857,0.03189201,202.54,202.53,6.81]
[1757271877162,5.57737944,202.54,202.53,6.81]
[1757271881161,0.03189201,202.54,202.53,6.81]
[1757271885660,0.03189201,202.54,202.53,8.77675363]
[1757271885965,5.58363443,202.54,202.53,8.77675363]
[1757271891067,0.03189201,202.54,202.53,1.96675363]
[1757271891366,0.03189201,202.54,202.53,8.76675363]
[1757271891565,0.03189201,202.54,202.53,6.8]
[1757271896869,5.58573503,202.54,202.53,6.8]
[1757271899272,0.03189201,202.54,202.5,1.96675363]
[1757271899472,5.55460272,202.53,202.51,6.8]
[1757271899874,5.55460272,202.53,202.5,1.96675363]
[1757271900266,5.55460272,202.53,202.51,6.8]
[1757271900472,5.55460272,202.53,202.5,1.96675363]
[1757271900673,5.55460272,202.53,202.51,6.8]
[1757271901379,5.55460272,202.52,202.51,6.8]
[1757271903883,7.82,202.53,202.47,1.96675363]
[1757271904180,5.55515413,202.49,202.48,6.8]
[1757271904476,5.55515413,202.5,202.48,6.8]
[1757271907176,5.55515413,202.51,202.48,6.8]
[1757271907380,13.77515413,202.51,202.48,6.8]
[1757271908681,13.77515413,202.51,202.48,6.81]
[1757271909483,5.55515413,202.51,202.49,1.96675363]
[1757271909679,5.55515413,202.52,202.49,1.96675363]
[1757271909979,5.55515413,202.52,202.5,6.81]
[1757271910382,5.55515413,202.52,202.48,6.81]
[1757271910575,5.55515413,202.52,202.47,3.07394754]
[1757271910975,5.55515413,202.52,202.48,6.81]
[1757271911382,5.55515413,202.52,202.47,3.07394754]
[1757271912275,13.77515413,202.52,202.47,3.07394754]
[1757271912581,13.77515413,202.52,202.48,6.81]
[1757271913276,13.77515413,202.52,202.47,3.07394754]
[1757271914083,13.77515413,202.52,202.48,6.81]
[1757271914379,13.77515413,202.52,202.47,3.07394754]
[1757271915081,13.77515413,202.52,202.48,6.81]
[1757271915474,13.77515413,202.52,202.47,3.07394754]
[1757271915678,8.22,202.51,202.48,6.81]
[1757271915974,8.22,202.51,202.47,3.07394754]
[1757271916178,8.22,202.51,202.48,6.81]
[1757271916381,8.22,202.51,202.47,3.07394754]
[1757271916583,8.22,202.51,202.48,6.81]
[1757271916785,8.22,202.51,202.47,3.07394754]
[1757271916985,8.22,202.51,202.48,6.81]
[1757271917586,5.55515413,202.52,202.48,6.81]
[1757271917785,5.55515413,202.52,202.47,3.07394754]
[1757271917986,8.22,202.51,202.47,3.07394754]
[1757271918181,8.22,202.51,202.47,9.88394754]
[1757271918581,5.55515413,202.52,202.47,9.88394754]
[1757271919784,8.22,202.51,202.47,9.88394754]
[1757271919983,8.22,202.51,202.47,3.07394754]
[1757271920283,8.22,202.51,202.48,6.81]
[1757271920482,5.55515413,202.52,202.48,6.81]
[1757271921181,8.22,202.51,202.48,6.81]
[1757271921385,5.55515413,202.52,202.48,6.81]
[1757271921586,8.22,202.51,202.48,6.81]
[1757271921886,5.55515413,202.52,202.48,6.81]
[1757271922085,8.22,202.51,202.48,6.81]
[1757271922287,5.55515413,202.52,202.48,6.81]
[1757271922786,8.22,202.51,202.48,6.81]
[1757271922980,8.22,202.51,202.47,9.88394754]
[1757271923181,5.55515413,202.52,202.47,9.88394754]
[1757271923988,8.22,202.51,202.48,6.81]
[1757271924282,5.55515413,202.52,202.48,6.81]
[1757271924480,8.22,202.51,202.48,6.81]
[1757271924678,5.55515413,202.52,202.48,6.81]
[1757271924887,8.22,202.51,202.48,6.81]
[1757271925087,5.55515413,202.52,202.48,6.81]
[1757271925288,8.22,202.51,202.48,6.81]
[1757271925481,5.55515413,202.52,202.48,6.81]
[1757271925888,8.22,202.51,202.48,6.81]
[1757271926183,5.55515413,202.52,202.48,6.81]
[1757271927192,8.22,202.51,202.48,6.81]
[1757271927490,5.55515413,202.51,202.45,4.13806137]
[1757271928085,8.22,202.5,202.45,10.94806137]
[1757271928486,5.55515413,202.51,202.45,4.13806137]
[1757271928686,0.03333013,202.5,202.45,4.13806137]
[1757271928888,8.22,202.49,202.46,6.81]
[1757271930193,8.22,202.49,202.45,4.13806137]
[1757271930391,8.22,202.49,202.46,6.81]
[1757271930791,8.22,202.49,202.45,4.13806137]
[1757271931392,8.22,202.49,202.46,6.81]
[1757271931593,8.22,202.49,202.45,4.13806137]
[1757271932694,8.22,202.49,202.46,6.82]
[1757271934301,0.03333013,202.5,202.47,6.82]
[1757271935094,0.03333013,202.5,202.49,6.81]
[1757271962528,5.55515413,202.55,202.49,6.81]
[1757271962732,5.55515413,202.55,202.51,3.07394754]
[1757271963231,5.55515413,202.55,202.52,6.81]
[1757271963422,13.23515413,202.56,202.52,6.81]
[1757271963821,13.23515413,202.56,202.52,6.84335603]
[1757271964025,13.23515413,202.56,202.53,6.81]
[1757271964231,13.23515413,202.56,202.52,0.03335603]
[1757271964731,13.23515413,202.56,202.53,6.81]
[1757271964934,13.23515413,202.56,202.52,0.03335603]
[1757271965128,13.23515413,202.56,202.53,6.81]
[1757271965334,13.23515413,202.56,202.52,0.03335603]
[1757271965527,13.23515413,202.56,202.53,6.81]
[1757271965727,13.23515413,202.56,202.52,0.03335603]
[1757271965923,13.23515413,202.56,202.53,6.81]
[1757271966423,7.68,202.56,202.53,6.81]
[1757271970040,7.52,202.56,202.53,6.81]
[1757271970330,7.52,202.57,202.53,6.81]
[1757271970533,7.52,202.57,202.52,3.10730357]
[1757271970729,7.52,202.57,202.53,6.81]
[1757271970933,7.52,202.57,202.52,3.10730357]
[1757271971533,7.52,202.57,202.53,9.88394754]
[1757271971739,7.52,202.57,202.53,3.07394754]
[1757271971937,7.52,202.57,202.54,6.81]
[1757271972332,7.52,202.57,202.56,1.96619143]
[1757271977038,7.52,202.59,202.56,1.96619143]
[1757271977231,5.55515413,202.6,202.56,1.96619143]
[1757271977433,7.52,202.59,202.56,1.96619143]
[1757271977735,7.52,202.59,202.56,8.77619143]
[1757271978034,7.52,202.59,202.58,1.96619143]
[1757271980937,7.52,202.6,202.57,1.96619143]
[1757271981333,5.55515413,202.61,202.57,1.96619143]
[1757271983138,7.52,202.6,202.57,1.96619143]
[1757271983333,5.55515413,202.61,202.57,1.96619143]
[1757271983533,7.52,202.6,202.57,1.96619143]
[1757271983935,5.55515413,202.61,202.57,1.96619143]
[1757271984942,7.52,202.6,202.57,1.96619143]
[1757271985141,5.55515413,202.61,202.57,1.96619143]
[1757271985441,7.52,202.6,202.56,0.03460027]
[1757271985631,7.52,202.6,202.56,2.0007917]
[1757271986339,7.52,202.6,202.56,8.8107917]
[1757271986534,5.55515413,202.61,202.56,8.8107917]
[1757271986740,7.52,202.6,202.58,1.96619143]
[1757271986934,5.55515413,202.61,202.59,6.81]
[1757271986935,7.52,202.61,202.59,6.81]
[1757271987138,5.55515413,202.62,202.59,6.81]
[1757271987338,7.52,202.6,202.59,6.81]
[1757271987637,7.52,202.6,202.58,8.77619143]
[1757271989037,7.52,202.62,202.59,6.81]
[1757271989336,5.55515413,202.63,202.59,6.81]
[1757271989337,7.52,202.63,202.6,1.96619143]
[1757271989532,5.55515413,202.64,202.6,1.96619143]
[1757271989735,7.52,202.63,202.6,1.96619143]
[1757271989936,5.55515413,202.64,202.6,1.96619143]
[1757271990138,5.55515413,202.64,202.62,1.96619143]
[1757271990336,7.52,202.63,202.62,1.96619143]
[1757271991042,7.52,202.65,202.62,8.77619143]
[1757271991240,7.52,202.65,202.64,1.96619143]
[1757271991949,5.55515413,202.67,202.64,1.96619143]
[1757271992141,13.07515413,202.67,202.66,1.96619143]
[1757271992344,7.52,202.67,202.66,1.96619143]
[1757271997347,15.27134556,202.69,202.64,0.03136495]
[1757271997649,7.75,202.66,202.64,0.03136495]
[1757271998350,5.55515413,202.67,202.64,0.03136495]
[1757271998549,7.75,202.66,202.64,0.03136495]
[1757271998750,5.55515413,202.67,202.64,0.03136495]
[1757271999747,7.75,202.66,202.64,0.03136495]
[1757271999943,5.55515413,202.67,202.64,0.03136495]
[1757272000750,7.75,202.66,202.64,0.03136495]
[1757272000951,5.55515413,202.67,202.64,0.03136495]
[1757272001851,7.75,202.66,202.64,0.03136495]
[1757272002252,5.55515413,202.67,202.64,0.03136495]
[1757272002748,7.75,202.65,202.64,0.03136495]
[1757272015265,16.04941053,202.65,202.64,0.03136495]
[1757272017464,7.75,202.65,202.64,0.03136495]
[1757272023472,16.04941053,202.65,202.64,0.03136495]
[1757272023974,7.75,202.65,202.64,0.03136495]
[1757272024867,16.04941053,202.65,202.64,0.03136495]
[1757272029376,7.75,202.65,202.64,0.03136495]
[1757272031278,7.75,202.65,202.64,0.003719]
[1757272036575,7.75,202.65,202.56,3.07124923]
[1757272036776,7.75,202.65,202.54,6.79]
[1757272036777,8.2,202.57,202.54,6.79]
[1757272036986,13.74387605,202.57,202.54,6.79]
[1757272037187,13.74387605,202.57,202.53,3.07124923]
[1757272037188,5.54387605,202.56,202.53,3.07124923]
[1757272037482,5.54387605,202.56,202.52,71.59473279]
[1757272037483,8.2,202.56,202.52,71.59473279]
[1757272037681,8.2,202.54,202.52,71.59473279]
[1757272038082,5.54387605,202.55,202.53,6.79]
[1757272038686,13.74387605,202.55,202.53,6.79]
[1757272039388,8.2,202.55,202.53,6.79]
[1757272039887,8.2,202.55,202.52,64.80473279]
[1757272039888,8.2,202.55,202.52,71.59473279]
[1757272040086,5.57897524,202.56,202.52,71.59473279]
[1757272040287,8.2,202.54,202.52,71.59473279]
[1757272040786,8.2,202.54,202.52,6.79]
[1757272042184,8.2,202.55,202.52,6.79]
[1757272042390,8.2,202.55,202.48,341.68124923]
[1757272042590,8.2,202.55,202.49,6.79]
[1757272043989,5.57897524,202.56,202.49,6.79]
[1757272045384,0.03509919,202.56,202.49,6.79]
[1757272045986,8.2,202.55,202.49,6.79]
[1757272046691,13.74387605,202.55,202.49,6.79]
[1757272047293,8.2,202.55,202.49,6.79]
[1757272047590,13.74387605,202.55,202.48,3.07124923]
[1757272048585,13.74387605,202.55,202.46,6.79]